fUST/lending_fUST_20250210
["ID","MTS","AMOUNT","RATE_DAILY","PERIOD"]
[352541785,1739158260474,-778.6066599,0.00013699,2]
[352541786,1739158260484,-778.6066599,0.00013699,2]
[352541787,1739158260494,-778.6066599,0.00013699,2]
[352541788,1739158260504,-778.6066599,0.00013699,2]
[352541789,1739158260513,-4601.46951039,0.00013699,2]
[352541790,1739158260523,-4601.46951039,0.00013699,2]
[352541791,1739158260532,-500.0,0.00013699,2]
[352541792,1739158260542,-160.05648958,0.00013726,2]
[352541793,1739158260552,-12815.9952308,0.00013745,2]
[352541794,1739158260561,-415.69858582,0.00013762,2]
[352541795,1739158260570,-680.156,0.00013835,2]
[352541796,1739158260580,-750.9,0.00013835,2]
[352541797,1739158260589,-500.0,0.00013835,2]
[352541798,1739158260599,-869.06,0.00013835,2]
[352541799,1739158260609,-151.0,0.00013835,2]
[352541800,1739158260618,-500.0,0.00013835,2]
[352541801,1739158260629,-1264.74,0.00013835,2]
[352541802,1739158260638,-368.33034,0.00013835,2]
[352541803,1739158260647,-368.33034,0.00013835,2]
[352541804,1739158260657,-151.0,0.00013835,2]
[352541805,1739158260666,-212.874582,0.00013835,2]
[352541806,1739158260676,-2387.63,0.00013835,2]
[352541807,1739158260685,-2833.6,0.00013835,2]
[352541808,1739158260694,-1462.84,0.00013835,2]
[352541809,1739158260703,-9414.28,0.00013835,2]
[352541810,1739158260777,-540.44,0.00013835,2]
[352541811,1739158260786,-2762.05,0.00013835,2]
[352541812,1739158260797,-832.77,0.00013835,2]
[352541813,1739158260806,-18426.22,0.00013835,2]
[352541814,1739158260816,-500.0,0.00013835,2]
[352541815,1739158260825,-629.0,0.00013835,2]
[352541816,1739158260836,-1212.39,0.00013835,2]
[352541817,1739158260845,-1041.49,0.00013835,2]
[352541818,1739158260855,-151.0,0.00013835,2]
[352541819,1739158260865,-541.97,0.00013835,2]
[352541820,1739158260874,-560.89,0.00013835,2]
[352541821,1739158260884,-1382.72,0.00013835,2]
[352541822,1739158260894,-151.0,0.00013835,2]
[352541823,1739158260904,-1123.04,0.00013835,2]
[352541824,1739158260913,-1124.08,0.00013835,2]
[352541825,1739158260924,-819.526347,0.00013835,2]
[352541826,1739158260934,-819.526347,0.00013835,2]
[352541827,1739158260944,-785.51,0.00013835,2]
[352541828,1739158260954,-1966.77,0.00013835,2]
[352541829,1739158260964,-517.43,0.00013835,2]
[352541830,1739158260973,-2179.85,0.00013835,2]
[352541831,1739158260983,-1003.81,0.00013835,2]
[352541832,1739158260994,-577.79,0.00013835,2]
[352541833,1739158261004,-151.0,0.00013835,2]
[352541834,1739158261014,-792.12,0.00013835,2]
[352541835,1739158261024,-888.19,0.00013835,2]
[352541836,1739158261034,-715.47,0.00013835,2]
[352541837,1739158261044,-732.07,0.00013835,2]
[352541838,1739158261053,-974.08,0.00013835,2]
[352541839,1739158261063,-591.46,0.00013835,2]
[352541840,1739158261073,-565.22,0.00013835,2]
[352541841,1739158261088,-838.17,0.00013835,2]
[352541842,1739158261098,-511.83,0.00013835,2]
[352541843,1739158261108,-2397.98,0.00013835,2]
[352541844,1739158261118,-151.0,0.00013835,2]
[352541845,1739158261128,-2724.01,0.00013835,2]
[352541846,1739158261138,-500.0,0.00013835,2]
[352541847,1739158261148,-5390.65,0.00013835,2]
[352541848,1739158261158,-1069.82,0.00013835,2]
[352541849,1739158261168,-762.52,0.00013835,2]
[352541850,1739158261178,-529.22,0.00013835,2]
[352541851,1739158261188,-7501.34,0.00013835,2]
[352541852,1739158261198,-750.9,0.00013972,2]
[352541853,1739158261211,-434.26,0.00013972,2]
[352541854,1739158261220,-869.06,0.00013972,2]
[352541855,1739158261231,-216.1745936,0.00013972,2]
[352541856,1739158261241,-1264.74,0.00013972,2]
[352541857,1739158261251,-151.280243,0.00013972,2]
[352541858,1739158261261,-191.472735,0.00013972,2]
[352541859,1739158261271,-191.472735,0.00013972,2]
[352541860,1739158261280,-151.0,0.00013972,2]
[352541861,1739158261291,-151.0,0.00013972,2]
[352541862,1739158261301,-2387.63,0.00013972,2]
[352541863,1739158261311,-2833.6,0.00013972,2]
[352541864,1739158261321,-1462.84,0.00013972,2]
[352541865,1739158261331,-9414.28,0.00013972,2]
[352541866,1739158261341,-400.55380174,0.00013972,2]
[352541867,1739158261358,-139.88619826,0.00013972,2]
[352541868,1739158261367,-2762.05,0.00013972,2]
[352541869,1739158261377,-832.77,0.00013972,2]
[352541870,1739158261387,-8586.64045866,0.00013972,2]
[352541871,1739158261396,-9645.29529311,0.00013972,2]
[352541872,1739158261523,-860.67,0.00011095,2]
[352541873,1739158261534,-624.13075764,0.00011232,2]
[352541874,1739158261547,-236.53924236,0.00011232,2]
[352541875,1739158261556,-860.67,0.00011369,2]
[352541876,1739158261566,-860.67,0.00011506,2]
[352541877,1739158261576,-860.67,0.00011643,2]
[352541878,1739158261587,-500.0,0.0001178,2]
[352541879,1739158261596,-860.67,0.0001178,2]
[352541880,1739158261607,-500.0,0.00011917,2]
[352541881,1739158261616,-860.67,0.00011917,2]
[352541882,1739158261626,-500.0,0.00012054,2]
[352541883,1739158261635,-860.67,0.00012054,2]
[352541884,1739158261645,-500.0,0.00012191,2]
[352541885,1739158261654,-500.0,0.00012328,2]
[352541886,1739158261664,-408.61,0.00012465,2]
[352541887,1739158261674,-8780.92470689,0.00013972,2]
[352541888,1739158261683,-252.23502056,0.00013972,2]
[352541889,1739158261693,-629.0,0.00013972,2]
[352541890,1739158261702,-421.95317757,0.00013972,2]
[352541891,1739158262029,-731.77,0.00010958,2]
[352541892,1739158262039,-733.68,0.00010959,2]
[352541893,1739158262048,-731.77,0.00011095,2]
[352541894,1739158262058,-731.77,0.00011232,2]
[352541895,1739158262068,-731.77,0.00011369,2]
[352541896,1739158262080,-731.77,0.00011506,2]
[352541897,1739158262090,-860.67,0.00012191,2]
[352541898,1739158262100,-860.67,0.00012328,2]
[352541899,1739158262110,-860.67,0.00012465,2]
[352541900,1739158262120,-860.67,0.00012602,2]
[352541901,1739158262130,-860.67,0.00012739,2]
[352541902,1739158262141,-860.67,0.00012876,2]
[352541903,1739158262151,-860.67,0.00013013,2]
[352541904,1739158262160,-860.67,0.0001315,2]
[352541905,1739158262171,-860.67,0.00013287,2]
[352541906,1739158262181,-860.67,0.00013424,2]
[352541907,1739158262190,-790.43682243,0.00013972,2]
[352541908,1739158262201,-151.0,0.00013972,2]
[352541909,1739158262215,-1041.49,0.00013972,2]
[352541910,1739158262225,-541.97,0.00013972,2]
[352541911,1739158262235,-560.89,0.00013972,2]
[352541912,1739158262245,-1382.72,0.00013972,2]
[352541913,1739158262256,-1123.04,0.00013972,2]
[352541914,1739158262266,-1124.08,0.00013972,2]
[352541915,1739158262276,-785.51,0.00013972,2]
[352541916,1739158262288,-1966.77,0.00013972,2]
[352541917,1739158262298,-517.43,0.00013972,2]
[352541918,1739158262307,-2179.85,0.00013972,2]
[352541919,1739158262317,-1003.81,0.00013972,2]
[352541920,1739158262329,-577.79,0.00013972,2]
[352541921,1739158262338,-792.12,0.00013972,2]
[352541922,1739158262348,-151.0,0.00013972,2]
[352541923,1739158262358,-888.19,0.00013972,2]
[352541924,1739158262370,-151.0,0.00013972,2]
[352541925,1739158262380,-715.47,0.00013972,2]
[352541926,1739158262390,-732.07,0.00013972,2]
[352541927,1739158262400,-399.1078023,0.00013972,2]
[352541928,1739158262412,-574.9721977,0.00013972,2]
[352541929,1739158262421,-591.46,0.00013972,2]
[352541930,1739158262431,-565.22,0.00013972,2]
[352541931,1739158262440,-838.17,0.00013972,2]
[352541932,1739158262450,-511.83,0.00013972,2]
[352541933,1739158262460,-2397.98,0.00013972,2]
[352541934,1739158262470,-2724.01,0.00013972,2]
[352541935,1739158262480,-227.95041352,0.00013972,2]
[352541936,1739158262489,-239.790532,0.00013972,2]
[352541937,1739158262499,-239.790532,0.00013972,2]
[352541938,1739158262508,-5390.65,0.00013972,2]
[352541939,1739158262517,-1069.82,0.00013972,2]
[352541940,1739158262527,-762.52,0.00013972,2]
[352541941,1739158262537,-529.22,0.00013972,2]
[352541942,1739158262547,-7501.34,0.00013972,2]
[352541943,1739158262556,-2384.41,0.00014,2]
[352541944,1739158262566,-751.08,0.00014109,2]
[352541945,1739158262575,-869.23943635,0.00014109,2]
[352541946,1739158262589,-1264.83,0.00014109,2]
[352541947,1739158262600,-2387.71206274,0.00014109,2]
[352541948,1739158262609,-1462.89435092,0.00014109,2]
[352541949,1739158262619,-9414.46269488,0.00014109,2]
[352541950,1739158262629,-540.51718387,0.00014109,2]
[352541951,1739158262639,-2762.12206826,0.00014109,2]
[352541952,1739158262648,-832.98238847,0.00014109,2]
[352541953,1739158262658,-5296.7216148,0.00014109,2]
[352541954,1739158262671,-1000.9,0.00014109,2]
[352541955,1739158262682,-741.32642241,0.00014109,2]
[352541956,1739158262695,-791.2784889,0.00014109,2]
[352541957,1739158262811,-500.0,0.00010958,2]
[352541958,1739158262821,-448.37496195,0.00011643,2]
[352541959,1739158262838,-283.39503805,0.00011643,2]
[352541960,1739158262848,-731.77,0.0001178,2]
[352541961,1739158262858,-731.77,0.00011917,2]
[352541962,1739158262868,-731.77,0.00012054,2]
[352541963,1739158262878,-731.77,0.00012191,2]
[352541964,1739158262888,-731.77,0.00012328,2]
[352541965,1739158262897,-731.77,0.00012465,2]
[352541966,1739158262907,-731.77,0.00012602,2]
[352541967,1739158262916,-731.77,0.00012739,2]
[352541968,1739158262927,-860.67,0.00013561,2]
[352541969,1739158262937,-174.00127514,0.00013698,2]
[352541970,1739158262950,-686.66872486,0.00013698,2]
[352541971,1739158262960,-860.67,0.00013835,2]
[352541972,1739158262970,-860.67,0.00013972,2]
[352541973,1739158262980,-9422.92147929,0.00014109,2]
[352541974,1739158262999,-1173.30013861,0.00014109,2]
[352541975,1739158263010,-629.1926689,0.00014109,2]
[352541976,1739158263020,-1212.52873182,0.00014109,2]
[352541977,1739158263030,-1041.67153594,0.00014109,2]
[352541978,1739158263042,-542.06,0.00014109,2]
[352541979,1739158263052,-561.0158085,0.00014109,2]
[352541980,1739158263063,-1382.78921722,0.00014109,2]
[352541981,1739158263074,-1123.27909583,0.00014109,2]
[352541982,1739158263090,-1124.15594899,0.00014109,2]
[352541983,1739158263100,-785.7274788,0.00014109,2]
[352541984,1739158263113,-1966.83004232,0.00014109,2]
[352541985,1739158263125,-517.44201618,0.00014109,2]
[352541986,1739158263137,-2179.9823762,0.00014109,2]
[352541987,1739158263147,-1003.92558802,0.00014109,2]
[352541988,1739158263159,-578.01,0.00014109,2]
[352541989,1739158263169,-792.2891153,0.00014109,2]
[352541990,1739158263181,-888.4136837,0.00014109,2]
[352541991,1739158263255,-715.5120082,0.00014109,2]
[352541992,1739158263266,-974.11203711,0.00014109,2]
[352541993,1739158263277,-591.55,0.00014109,2]
[352541994,1739158263288,-565.39442469,0.00014109,2]
[352541995,1739158263299,-838.24695402,0.00014109,2]
[352541996,1739158263308,-511.84543609,0.00014109,2]
[352541997,1739158263320,-2398.01226704,0.00014109,2]
[352541998,1739158263335,-2724.09995828,0.00014109,2]
[352541999,1739158263344,-5390.83924027,0.00014109,2]
[352542000,1739158263355,-1070.05,0.00014109,2]
[352542001,1739158263365,-762.69,0.00014109,2]
[352542002,1739158263375,-529.28,0.00014109,2]
[352542003,1739158263386,-7501.39038804,0.00014109,2]
[352542004,1739158263396,-860.77218681,0.00014109,2]
[352542005,1739158263407,-1000.0,0.00014247,2]
[352542006,1739158263417,-787.67856454,0.00014247,2]
[352542007,1739158263428,-1000.0,0.00014247,2]
[352542008,1739158263437,-576.4511354,0.00014247,2]
[352542009,1739158263448,-1000.0,0.00014247,2]
[352542010,1739158263459,-415.69858582,0.00014319,2]
[352542011,1739158263469,-700.0,0.00014755,2]
[352542012,1739158263479,-415.69858582,0.00014876,2]
[352542013,1739158263489,-30824.34440273,0.00015,5]
[352542015,1739159142135,-300.0,0.00010957,2]
[352542016,1739159142160,-500.0,0.00010957,2]
[352542017,1739159142184,-246.40650609,0.00010957,2]
[352542018,1739159142208,-61.4165721,0.00010958,2]
[352542019,1739159232083,-300.0,0.00010957,2]
[352542020,1739159232109,-150.0,0.00010958,2]
[352542021,1739159234087,-42.22037632,0.00010958,2]
[352542022,1739159234108,-114.57238858,0.00010958,2]
[352542074,1739159432917,-375.0,0.00010858,2]
[352542320,1739159438715,-133.0423896,0.00010858,2]
[352542321,1739159438724,-300.0,0.00010956,2]
[352542322,1739159438734,-500.0,0.00010957,2]
[352542323,1739159438744,-500.0,0.00010957,2]
[352542324,1739159438753,-500.0,0.00010957,2]
[352542325,1739159438762,-500.0,0.00010957,2]
[352542326,1739159438772,-329.29731974,0.00010957,2]
[352542327,1739159438781,-500.0,0.00010957,2]
[352542328,1739159438791,-500.0,0.00010957,2]
[352542329,1739159438800,-250.0,0.00010957,2]
[352542330,1739159438810,-500.0,0.00010957,2]
[352542331,1739159438819,-346.46862131,0.00010957,2]
[352542332,1739159438865,-153.53137869,0.00010957,2]
[352542333,1739159438875,-500.0,0.00010957,2]
[352542334,1739159438885,-500.0,0.00010957,2]
[352542335,1739159438895,-500.0,0.00010957,2]
[352542336,1739159438904,-500.0,0.00010957,2]
[352542338,1739159438914,-251.76624538,0.00010957,2]
[352542340,1739159438924,-650.0,0.00010957,2]
[352542342,1739159438933,-500.0,0.00010957,2]
[352542343,1739159438943,-500.0,0.00010957,2]
[352542344,1739159438952,-500.0,0.00010957,2]
[352542345,1739159438963,-500.0,0.00010957,2]
[352542346,1739159438973,-500.0,0.00010957,2]
[352542347,1739159438983,-500.0,0.00010957,2]
[352542349,1739159438993,-500.0,0.00010958,2]
[352542351,1739159439003,-502.63099156,0.00010958,2]
[352542353,1739159439012,-500.0,0.00010958,2]
[352542355,1739159439022,-500.0,0.00010958,2]
[352542357,1739159439032,-504.23682283,0.00010958,2]
[352542358,1739159439042,-504.15519562,0.00010958,2]
[352542359,1739159439052,-500.0,0.00010958,2]
[352542360,1739159439061,-500.0,0.00010958,2]
[352542361,1739159439070,-346.59434901,0.00010958,2]
[352542362,1739159439084,-500.0,0.00010958,2]
[352542363,1739159439095,-500.0,0.00010958,2]
[352542364,1739159439104,-500.0,0.00010958,2]
[352542365,1739159439114,-502.59886123,0.00010958,2]
[352542366,1739159439124,-500.0,0.00010958,2]
[352542367,1739159439134,-500.0,0.00010958,2]
[352542368,1739159439144,-502.73792129,0.00010958,2]
[352542369,1739159439153,-500.0,0.00010958,2]
[352542370,1739159439163,-500.0,0.00010958,2]
[352542371,1739159439173,-500.0,0.00010958,2]
[352542372,1739159439182,-500.0,0.00010958,2]
[352542373,1739159439191,-500.0,0.00010958,2]
[352542374,1739159439201,-500.0,0.00010958,2]
[352542375,1739159439210,-500.0,0.00010958,2]
[352542376,1739159439220,-500.0,0.00010958,2]
[352542377,1739159439229,-500.0,0.00010958,2]
[352542378,1739159439239,-500.0,0.00010958,2]
[352542379,1739159439248,-500.0,0.00010958,2]
[352542380,1739159439258,-500.0,0.00010958,2]
[352542381,1739159439267,-500.0,0.00010958,2]
[352542382,1739159439277,-500.0,0.00010958,2]
[352542383,1739159439286,-719.3,0.00010958,2]
[352542384,1739159439296,-500.0,0.00010958,2]
[352542385,1739159439305,-500.0,0.00010958,2]
[352542386,1739159439314,-500.81014347,0.00010958,2]
[352542387,1739159439324,-500.0,0.00010958,2]
[352542388,1739159439336,-500.0,0.00010958,2]
[352542389,1739159439347,-500.0,0.00010958,2]
[352542390,1739159439357,-500.0,0.00010958,2]
[352542391,1739159439367,-500.0,0.00010958,2]
[352542392,1739159439378,-500.0,0.00010958,2]
[352542393,1739159439388,-500.0,0.00010958,2]
[352542394,1739159439397,-500.0,0.00010958,2]
[352542395,1739159439407,-500.0,0.00010958,2]
[352542396,1739159439417,-500.0,0.00010958,2]
[352542397,1739159439426,-309.6872035,0.00010958,2]
[352542398,1739159439435,-500.0,0.00010958,2]
[352542399,1739159439446,-500.0,0.00010958,2]
[352542400,1739159439456,-1019.54,0.00010958,2]
[352542401,1739159439465,-500.0,0.00010958,2]
[352542402,1739159439475,-505.67076895,0.00010958,2]
[352542403,1739159439485,-732.17,0.00010958,2]
[352542404,1739159439495,-500.0,0.00010958,2]
[352542405,1739159439504,-500.0,0.00010958,2]
[352542406,1739159439513,-500.0,0.00010958,2]
[352542407,1739159439522,-182.79960866,0.00010958,2]
[352542408,1739159439532,-500.0,0.00010958,2]
[352542409,1739159439541,-500.0,0.00010958,2]
[352542410,1739159439550,-500.0,0.00010958,2]
[352542411,1739159439560,-279.74,0.00010958,2]
[352542412,1739159439570,-500.0,0.00010958,2]
[352542413,1739159439580,-500.0,0.00010958,2]
[352542414,1739159439589,-501.8015462,0.00010958,2]
[352542415,1739159439599,-500.0,0.00010958,2]
[352542416,1739159439608,-500.0,0.00010958,2]
[352542417,1739159439619,-500.0,0.00010958,2]
[352542418,1739159439632,-500.0,0.00010958,2]
[352542419,1739159439642,-500.0,0.00010958,2]
[352542420,1739159439651,-500.0,0.00010958,2]
[352542421,1739159439661,-733.41,0.00010958,2]
[352542422,1739159439670,-742.49,0.00010958,2]
[352542423,1739159439679,-338.53199913,0.00010958,2]
[352542424,1739159439689,-500.0,0.00010958,2]
[352542425,1739159439699,-500.0,0.00010958,2]
[352542426,1739159439708,-354.50243886,0.00010958,2]
[352542427,1739159439722,-145.49756114,0.00010958,2]
[352542428,1739159439731,-500.0,0.00010958,2]
[352542429,1739159439740,-500.0,0.00010958,2]
[352542430,1739159439749,-500.0,0.00010958,2]
[352542431,1739159439759,-500.0,0.00010958,2]
[352542432,1739159439768,-500.0,0.00010958,2]
[352542433,1739159439777,-500.0,0.00010958,2]
[352542434,1739159439787,-500.0,0.00010958,2]
[352542435,1739159439796,-1187.85,0.00010958,2]
[352542436,1739159439805,-500.0,0.00010958,2]
[352542437,1739159439814,-502.96608837,0.00010958,2]
[352542438,1739159439822,-500.0,0.00010958,2]
[352542439,1739159439834,-503.59590257,0.00010958,2]
[352542440,1739159439843,-500.0,0.00010958,2]
[352542441,1739159439852,-500.0,0.00010958,2]
[352542442,1739159439861,-500.0,0.00010958,2]
[352542443,1739159439871,-100.83194499,0.00010958,2]
[352542444,1739159439883,-399.16805501,0.00010958,2]
[352542445,1739159439893,-500.0,0.00010958,2]
[352542446,1739159439902,-500.0,0.00010958,2]
[352542447,1739159439912,-500.0,0.00010958,2]
[352542448,1739159439921,-694.28,0.00010958,2]
[352542449,1739159439931,-500.0,0.00010958,2]
[352542450,1739159439940,-14.1555011,0.00010958,2]
[352542451,1739159439952,-485.8444989,0.00010958,2]
[352542452,1739159439961,-500.0,0.00010958,2]
[352542453,1739159439972,-500.0,0.00010958,2]
[352542454,1739159439982,-500.0,0.00010958,2]
[352542455,1739159439991,-500.0,0.00010958,2]
[352542456,1739159440001,-705.99,0.00010958,2]
[352542457,1739159440010,-500.0,0.00010958,2]
[352542458,1739159440020,-500.0,0.00010958,2]
[352542459,1739159440029,-500.0,0.00010958,2]
[352542460,1739159440038,-500.0,0.00010958,2]
[352542461,1739159440047,-500.0,0.00010958,2]
[352542462,1739159440056,-101.30247089,0.00010958,2]
[352542463,1739159440136,-398.69752911,0.00010958,2]
[352542464,1739159440146,-580.12,0.00010958,2]
[352542465,1739159440155,-500.0,0.00010958,2]
[352542466,1739159440165,-500.0,0.00010958,2]
[352542467,1739159440174,-1920.71,0.00010958,2]
[352542468,1739159440186,-500.31126618,0.00010958,2]
[352542469,1739159440195,-500.0,0.00010958,2]
[352542470,1739159440204,-500.0,0.00010958,2]
[352542471,1739159440213,-500.0,0.00010958,2]
[352542472,1739159440223,-502.54969925,0.00010958,2]
[352542473,1739159440232,-500.0,0.00010958,2]
[352542474,1739159440241,-500.0,0.00010958,2]
[352542475,1739159440251,-500.0,0.00010958,2]
[352542476,1739159440261,-500.0,0.00010958,2]
[352542477,1739159440271,-500.0,0.00010958,2]
[352542478,1739159440280,-500.0,0.00010958,2]
[352542479,1739159440289,-500.0,0.00010958,2]
[352542480,1739159440298,-500.0,0.00010958,2]
[352542482,1739159440308,-500.0,0.00010958,2]
[352542483,1739159440317,-500.0,0.00010958,2]
[352542484,1739159440329,-500.0,0.00010958,2]
[352542485,1739159440338,-500.0,0.00010958,2]
[352542486,1739159440347,-610.0,0.00010958,2]
[352542487,1739159440357,-500.0,0.00010958,2]
[352542488,1739159440366,-500.0,0.00010958,2]
[352542489,1739159440376,-230.1793234,0.00010958,2]
[352542490,1739159440385,-520.68931675,0.00010958,2]
[352542491,1739159440395,-500.0,0.00010958,2]
[352542492,1739159440404,-500.0,0.00010958,2]
[352542493,1739159440414,-504.35551584,0.00010958,2]
[352542494,1739159440423,-500.0,0.00010958,2]
[352542495,1739159440432,-500.0,0.00010958,2]
[352542496,1739159440442,-1079.91,0.00010958,2]
[352542497,1739159440451,-500.0,0.00010958,2]
[352542498,1739159440461,-500.0,0.00010958,2]
[352542499,1739159440470,-500.0,0.00010958,2]
[352542500,1739159440479,-500.0,0.00010958,2]
[352542501,1739159440489,-500.0,0.00010958,2]
[352542503,1739159440498,-653.91,0.00010958,2]
[352542505,1739159440508,-500.0,0.00010958,2]
[352542506,1739159440518,-500.0,0.00010958,2]
[352542507,1739159440527,-501.46,0.00010958,2]
[352542508,1739159440537,-500.0,0.00010958,2]
[352542509,1739159440546,-500.0,0.00010958,2]
[352542510,1739159440555,-500.0,0.00010958,2]
[352542511,1739159440565,-565.25071702,0.00010958,2]
[352542512,1739159440575,-500.0,0.00010958,2]
[352542513,1739159440591,-500.0,0.00010958,2]
[352542514,1739159440601,-3903.0,0.00010958,2]
[352542515,1739159440706,-500.0,0.00010958,2]
[352542516,1739159440716,-500.0,0.00010958,2]
[352542517,1739159440725,-500.0,0.00010958,2]
[352542518,1739159440735,-500.0,0.00010958,2]
[352542519,1739159440744,-3709.32,0.00010958,2]
[352542520,1739159440753,-500.32806321,0.00010958,2]
[352542521,1739159440762,-500.0,0.00010958,2]
[352542522,1739159440772,-500.0,0.00010958,2]
[352542523,1739159440781,-500.0,0.00010958,2]
[352542524,1739159440790,-500.0,0.00010958,2]
[352542525,1739159440799,-500.0,0.00010958,2]
[352542526,1739159440809,-500.0,0.00010958,2]
[352542527,1739159440818,-500.0,0.00010958,2]
[352542528,1739159440830,-500.0,0.00010958,2]
[352542529,1739159440839,-3719.6,0.00010958,2]
[352542530,1739159440849,-500.0,0.00010958,2]
[352542531,1739159440858,-502.51435021,0.00010958,2]
[352542532,1739159440867,-871.83,0.00010958,2]
[352542533,1739159440876,-2055.74,0.00010958,2]
[352542534,1739159440885,-364.180945,0.00010958,2]
[352542535,1739159440895,-500.0,0.00010958,2]
[352542536,1739159440904,-500.0,0.00010958,2]
[352542537,1739159440913,-500.0,0.00010958,2]
[352542538,1739159440923,-500.0,0.00010958,2]
[352542539,1739159440932,-1325.55,0.00010958,2]
[352542540,1739159440941,-500.0,0.00010958,2]
[352542541,1739159440950,-500.0,0.00010958,2]
[352542542,1739159440961,-500.0,0.00010958,2]
[352542543,1739159440970,-500.4093049,0.00010958,2]
[352542544,1739159440979,-500.0,0.00010958,2]
[352542545,1739159440988,-760.18,0.00010958,2]
[352542546,1739159440998,-500.0,0.00010958,2]
[352542547,1739159441007,-500.0,0.00010958,2]
[352542548,1739159441017,-650.97,0.00010958,2]
[352542549,1739159441025,-14163.79,0.00010958,2]
[352542550,1739159441034,-518.98,0.00010958,2]
[352542551,1739159441043,-501.69084307,0.00010958,2]
[352542552,1739159441052,-500.0,0.00010958,2]
[352542553,1739159441061,-500.0,0.00010958,2]
[352542554,1739159441070,-26907.86,0.00010958,2]
[352542555,1739159441081,-501.03863892,0.00010958,2]
[352542556,1739159441091,-2005.94,0.00010958,2]
[352542557,1739159441100,-1618.92,0.00010958,2]
[352542558,1739159441109,-500.0,0.00010958,2]
[352542559,1739159441118,-500.0,0.00010958,2]
[352542560,1739159441127,-704.77,0.00010958,2]
[352542561,1739159441137,-500.0,0.00010958,2]
[352542562,1739159441146,-1456.37,0.00010958,2]
[352542563,1739159441155,-500.0,0.00010958,2]
[352542564,1739159441165,-779.8,0.00010958,2]
[352542565,1739159441174,-500.0,0.00010958,2]
[352542566,1739159441184,-500.0,0.00010958,2]
[352542567,1739159441193,-500.0,0.00010958,2]
[352542568,1739159441203,-500.0,0.00010958,2]
[352542569,1739159441212,-500.0,0.00010958,2]
[352542570,1739159441221,-500.0,0.00010958,2]
[352542571,1739159441231,-500.0,0.00010958,2]
[352542572,1739159441240,-1919.7,0.00010958,2]
[352542573,1739159441250,-500.0,0.00010958,2]
[352542574,1739159441259,-824.44,0.00010958,2]
[352542575,1739159441270,-500.0,0.00010958,2]
[352542576,1739159441280,-500.0,0.00010958,2]
[352542577,1739159441289,-500.0,0.00010958,2]
[352542578,1739159441298,-1614.34,0.00010958,2]
[352542579,1739159441308,-525.62890895,0.00010958,2]
[352542580,1739159441317,-502.58477312,0.00010958,2]
[352542581,1739159441328,-500.0,0.00010958,2]
[352542582,1739159441337,-500.0,0.00010958,2]
[352542583,1739159441346,-500.0,0.00010958,2]
[352542584,1739159441356,-500.0,0.00010958,2]
[352542585,1739159441365,-515.85356192,0.00010958,2]
[352542586,1739159441375,-500.0,0.00010958,2]
[352542587,1739159441384,-500.0,0.00010958,2]
[352542588,1739159441393,-500.0,0.00010958,2]
[352542589,1739159441402,-500.0,0.00010958,2]
[352542590,1739159441411,-500.47737141,0.00010958,2]
[352542591,1739159441420,-500.0,0.00010958,2]
[352542592,1739159441430,-501.17294634,0.00010958,2]